[Event "Late-Titled-Tuesday-Blitz-October-03-2023"]
[Site "Chess.com"]
[Date "2023.10.03"]
[Round "3"]
[White "sergoy"]
[Black "Kirill_Klukin"]
[Result "1-0"]
[WhiteElo "3009"]
[BlackElo "2685"]
[TimeControl "180+1"]
[EndTime "14:26:15 PDT"]
[Termination "sergoy won by resignation"]

1. d4 {[%clk 0:03:00.2]} 1... d5 {[%clk 0:02:55.8]} 2. c4 {[%clk 0:03:00.4]}
2... c6 {[%clk 0:02:56.1]} 3. Nf3 {[%clk 0:03:01]} 3... e6 {[%clk 0:02:56.4]} 4.
Nc3 {[%clk 0:03:00.7]} 4... dxc4 {[%clk 0:02:56.6]} 5. a4 {[%clk 0:02:54.4]}
5... Bb4 {[%clk 0:02:53.7]} 6. e3 {[%clk 0:02:53.5]} 6... b5 {[%clk 0:02:52.7]}
7. Bd2 {[%clk 0:02:53.2]} 7... a5 {[%clk 0:02:51.6]} 8. axb5 {[%clk 0:02:50.1]}
8... Bxc3 {[%clk 0:02:52]} 9. Bxc3 {[%clk 0:02:50.6]} 9... cxb5 {[%clk
0:02:52.4]} 10. b3 {[%clk 0:02:51.3]} 10... Bb7 {[%clk 0:02:47.8]} 11. bxc4
{[%clk 0:02:51]} 11... b4 {[%clk 0:02:48.3]} 12. Bb2 {[%clk 0:02:50]} 12... Nf6
{[%clk 0:02:48.9]} 13. Bd3 {[%clk 0:02:50.2]} 13... O-O {[%clk 0:02:49.3]} 14.
O-O {[%clk 0:02:50.5]} 14... Nbd7 {[%clk 0:02:48]} 15. c5 {[%clk 0:02:47.7]}
15... Qc7 {[%clk 0:02:36.6]} 16. Re1 {[%clk 0:02:46]} 16... Be4 {[%clk
0:02:29.3]} 17. Bxe4 {[%clk 0:02:33.9]} 17... Nxe4 {[%clk 0:02:29.3]} 18. Qa4
{[%clk 0:02:34.5]} 18... Ndf6 {[%clk 0:02:20.2]} 19. Ne5 {[%clk 0:02:12.8]}
19... Nd5 {[%clk 0:01:56.9]} 20. Qc2 {[%clk 0:02:12.5]} 20... f5 {[%clk
0:01:22.2]} 21. f3 {[%clk 0:02:08.6]} 21... Nef6 {[%clk 0:01:10.2]} 22. Qb3
{[%clk 0:01:41.5]} 22... Rfe8 {[%clk 0:00:55.2]} 23. Ra4 {[%clk 0:01:38.6]}
23... Nd7 {[%clk 0:00:41.5]} 24. Nc4 {[%clk 0:01:35.8]} 24... Reb8 {[%clk
0:00:37.6]} 25. e4 {[%clk 0:01:28.9]} 25... fxe4 {[%clk 0:00:22.9]} 26. fxe4
{[%clk 0:01:29.8]} 26... Nf4 {[%clk 0:00:17.5]} 27. g3 {[%clk 0:00:53.7]} 27...
Nh3+ {[%clk 0:00:12.5]} 28. Kg2 {[%clk 0:00:47.6]} 28... Ng5 {[%clk 0:00:13]}
29. h4 {[%clk 0:00:46.8]} 29... Nxe4 {[%clk 0:00:08.5]} 30. Rxe4 {[%clk
0:00:43.5]} 30... Qc6 {[%clk 0:00:08.9]} 31. Nd2 {[%clk 0:00:43.7]} 31... Nf6
{[%clk 0:00:09]} 32. Qxe6+ {[%clk 0:00:43.7]} 32... Qxe6 {[%clk 0:00:07.2]} 33.
Rxe6 {[%clk 0:00:44.6]} 33... Nd5 {[%clk 0:00:07.3]} 34. Nc4 {[%clk 0:00:42.7]}
34... Nc3 {[%clk 0:00:07.6]} 35. Bxc3 {[%clk 0:00:39.1]} 35... bxc3 {[%clk
0:00:08.5]} 36. Nb6 {[%clk 0:00:38.3]} 36... Ra7 {[%clk 0:00:06.6]} 37. Re3
{[%clk 0:00:35.2]} 1-0

[Event "Late-Titled-Tuesday-Blitz-October-03-2023"]
[Site "Chess.com"]
[Date "2023.10.03"]
[Round "3"]
[White "Evandro_Barbosa"]
[Black "GMBenjaminBok"]
[Result "0-1"]
[WhiteElo "2668"]
[BlackElo "2983"]
[TimeControl "180+1"]
[EndTime "14:26:17 PDT"]
[Termination "GMBenjaminBok won on time"]

1. e4 {[%clk 0:03:00.9]} 1... c5 {[%clk 0:02:56.8]} 2. Nf3 {[%clk 0:03:01.2]}
2... d6 {[%clk 0:02:56.8]} 3. d4 {[%clk 0:03:01.5]} 3... cxd4 {[%clk 0:02:57.7]}
4. Nxd4 {[%clk 0:03:01.9]} 4... Nf6 {[%clk 0:02:58.3]} 5. Nc3 {[%clk 0:03:02.3]}
5... a6 {[%clk 0:02:58.9]} 6. Be2 {[%clk 0:03:02.6]} 6... e5 {[%clk 0:02:58.9]}
7. Nf3 {[%clk 0:03:03.2]} 7... Be7 {[%clk 0:02:59]} 8. Bg5 {[%clk 0:03:03.4]}
8... Nbd7 {[%clk 0:02:59.5]} 9. a4 {[%clk 0:03:03]} 9... h6 {[%clk 0:02:57.9]}
10. Bh4 {[%clk 0:03:03]} 10... Qb6 {[%clk 0:02:50]} 11. Rb1 {[%clk 0:02:46.9]}
11... O-O {[%clk 0:02:46.2]} 12. O-O {[%clk 0:02:46.5]} 12... Qc6 {[%clk
0:02:40.4]} 13. Nd5 {[%clk 0:02:36.5]} 13... Re8 {[%clk 0:02:12.7]} 14. a5
{[%clk 0:01:51.5]} 14... g5 {[%clk 0:01:58.5]} 15. Nxg5 {[%clk 0:01:47.3]} 15...
hxg5 {[%clk 0:01:55.4]} 16. Bxg5 {[%clk 0:01:48.2]} 16... Nxd5 {[%clk
0:01:52.1]} 17. exd5 {[%clk 0:01:47.2]} 17... Qc7 {[%clk 0:01:52.1]} 18. f4
{[%clk 0:01:42.3]} 18... Qd8 {[%clk 0:01:21.8]} 19. h4 {[%clk 0:01:14.1]} 19...
exf4 {[%clk 0:01:11]} 20. Bxf4 {[%clk 0:01:01.1]} 20... Ne5 {[%clk 0:00:39.4]}
21. Bh5 {[%clk 0:00:58.4]} 21... Ng6 {[%clk 0:00:27.3]} 22. Bh6 {[%clk
0:00:48.1]} 22... Bf6 {[%clk 0:00:16.6]} 23. Qf3 {[%clk 0:00:41.3]} 23... Bd4+
{[%clk 0:00:16.5]} 24. Rf2 {[%clk 0:00:13.5]} 24... Bxf2+ {[%clk 0:00:16.6]} 25.
Qxf2 {[%clk 0:00:13.7]} 25... Qxh4 {[%clk 0:00:17.2]} 26. Qf3 {[%clk 0:00:08.6]}
26... Ne5 {[%clk 0:00:14.4]} 27. Qe2 {[%clk 0:00:02]} 27... Bg4 {[%clk
0:00:13.6]} 0-1

[Event "Late-Titled-Tuesday-Blitz-October-03-2023"]
[Site "Chess.com"]
[Date "2023.10.03"]
[Round "3"]
[White "Truequitos"]
[Black "BillieKimbah"]
[Result "0-1"]
[WhiteElo "2444"]
[BlackElo "2964"]
[TimeControl "180+1"]
[EndTime "14:26:18 PDT"]
[Termination "BillieKimbah won by resignation"]

1. d4 {[%clk 0:03:00]} 1... Nf6 {[%clk 0:03:00]} 2. Nf3 {[%clk 0:03:00.1]} 2...
g6 {[%clk 0:03:00]} 3. Bg5 {[%clk 0:02:58.3]} 3... Bg7 {[%clk 0:03:00.2]} 4. c3
{[%clk 0:02:58.9]} 4... O-O {[%clk 0:02:59.9]} 5. Nbd2 {[%clk 0:02:59.4]} 5...
d6 {[%clk 0:03:00.1]} 6. e4 {[%clk 0:02:59.6]} 6... c5 {[%clk 0:03:00]} 7. dxc5
{[%clk 0:03:00.5]} 7... dxc5 {[%clk 0:03:00]} 8. Bc4 {[%clk 0:03:01.4]} 8... Nc6
{[%clk 0:02:59.2]} 9. O-O {[%clk 0:03:01.7]} 9... Qc7 {[%clk 0:02:59.6]} 10. Qe2
{[%clk 0:03:01.7]} 10... Nh5 {[%clk 0:02:58.6]} 11. Qe3 {[%clk 0:03:00.7]} 11...
b6 {[%clk 0:02:57.4]} 12. Rfe1 {[%clk 0:03:01.1]} 12... Ne5 {[%clk 0:02:41.7]}
13. Bd5 {[%clk 0:02:48.6]} 13... Rb8 {[%clk 0:02:27.9]} 14. Nxe5 {[%clk
0:02:44.4]} 14... Bxe5 {[%clk 0:02:28.8]} 15. g3 {[%clk 0:02:37.2]} 15... Nf6
{[%clk 0:02:23.4]} 16. Bb3 {[%clk 0:02:33.2]} 16... Ng4 {[%clk 0:02:22.2]} 17.
Qe2 {[%clk 0:02:33]} 17... Bg7 {[%clk 0:02:21.8]} 18. Bf4 {[%clk 0:02:28.9]}
18... Ne5 {[%clk 0:02:20.8]} 19. Kg2 {[%clk 0:02:16.9]} 19... h6 {[%clk
0:02:20.1]} 20. h4 {[%clk 0:02:07.8]} 20... b5 {[%clk 0:02:20.2]} 21. a4 {[%clk
0:02:06.4]} 21... c4 {[%clk 0:02:20.2]} 22. Bc2 {[%clk 0:02:06.4]} 22... b4
{[%clk 0:02:15]} 23. Bxe5 {[%clk 0:01:58]} 23... Bxe5 {[%clk 0:02:12.2]} 24.
Qxc4 {[%clk 0:01:56.4]} 24... bxc3 {[%clk 0:01:54.5]} 25. Qxc7 {[%clk
0:01:37.4]} 25... Bxc7 {[%clk 0:01:55.4]} 26. bxc3 {[%clk 0:01:37.8]} 26... Ba5
{[%clk 0:01:55.1]} 27. Rab1 {[%clk 0:01:27.8]} 27... Be6 {[%clk 0:01:54.1]} 28.
Re3 {[%clk 0:01:14.7]} 28... Ba2 {[%clk 0:01:53.2]} 29. Rb5 {[%clk 0:01:12.8]}
29... Rxb5 {[%clk 0:01:41]} 30. axb5 {[%clk 0:01:13.7]} 30... Rc8 {[%clk
0:01:41.3]} 31. Bb3 {[%clk 0:00:28.1]} 31... Bxc3 {[%clk 0:01:31]} 32. Bxa2
{[%clk 0:00:23.6]} 32... Bxd2 {[%clk 0:01:31.3]} 33. Ra3 {[%clk 0:00:23.6]}
33... Rc7 {[%clk 0:01:29.6]} 34. Ra6 {[%clk 0:00:21.7]} 34... e6 {[%clk
0:01:11.6]} 35. h5 {[%clk 0:00:20.8]} 35... gxh5 {[%clk 0:01:10.7]} 36. Kh3
{[%clk 0:00:16.2]} 36... Be1 {[%clk 0:01:09.2]} 37. Kg2 {[%clk 0:00:06.2]} 37...
Rc2 {[%clk 0:01:08.9]} 38. Rxa7 {[%clk 0:00:04.7]} 38... Bxf2 {[%clk 0:01:09.1]}
39. Ra8+ {[%clk 0:00:04.8]} 39... Kg7 {[%clk 0:01:09.8]} 40. Kh3 {[%clk
0:00:05.3]} 40... Bg1 {[%clk 0:01:07.6]} 41. g4 {[%clk 0:00:04.6]} 41... Rh2+
{[%clk 0:00:57.6]} 42. Kg3 {[%clk 0:00:04.7]} 42... h4+ {[%clk 0:00:58.5]} 43.
Kf3 {[%clk 0:00:03.5]} 43... Rf2+ {[%clk 0:00:58.2]} 0-1

[Event "Late-Titled-Tuesday-Blitz-October-03-2023"]
[Site "Chess.com"]
[Date "2023.10.03"]
[Round "3"]
[White "Aariow"]
[Black "JoakimVonAnd"]
[Result "0-1"]
[WhiteElo "2474"]
[BlackElo "2719"]
[TimeControl "180+1"]
[EndTime "14:26:19 PDT"]
[Termination "JoakimVonAnd won by resignation"]

1. d4 {[%clk 0:03:00.9]} 1... Nf6 {[%clk 0:02:59.2]} 2. c4 {[%clk 0:03:00.6]}
2... c5 {[%clk 0:02:59.7]} 3. d5 {[%clk 0:03:00.6]} 3... e6 {[%clk 0:03:00.3]}
4. Nc3 {[%clk 0:03:00.5]} 4... exd5 {[%clk 0:03:00.9]} 5. cxd5 {[%clk
0:03:01.4]} 5... d6 {[%clk 0:03:01.2]} 6. e4 {[%clk 0:03:02.3]} 6... g6 {[%clk
0:03:01.3]} 7. f4 {[%clk 0:03:03.1]} 7... Bg7 {[%clk 0:03:00.8]} 8. Bb5+ {[%clk
0:03:03.8]} 8... Nfd7 {[%clk 0:03:01.2]} 9. Nf3 {[%clk 0:03:04.3]} 9... O-O
{[%clk 0:02:59.5]} 10. O-O {[%clk 0:03:03.8]} 10... a6 {[%clk 0:02:58.4]} 11.
Bd3 {[%clk 0:03:04.5]} 11... b5 {[%clk 0:02:58.8]} 12. a3 {[%clk 0:03:05.2]}
12... c4 {[%clk 0:02:56.7]} 13. Bc2 {[%clk 0:03:05.6]} 13... Nc5 {[%clk
0:02:57.1]} 14. Kh1 {[%clk 0:03:06.2]} 14... Nbd7 {[%clk 0:02:46.7]} 15. f5
{[%clk 0:03:03]} 15... Ne5 {[%clk 0:02:41.2]} 16. Bg5 {[%clk 0:03:01.5]} 16...
f6 {[%clk 0:02:39.1]} 17. Be3 {[%clk 0:02:55.3]} 17... Ncd3 {[%clk 0:02:23.9]}
18. Nxe5 {[%clk 0:02:38.1]} 18... Nxe5 {[%clk 0:02:06.7]} 19. Ne2 {[%clk
0:02:35.7]} 19... Re8 {[%clk 0:01:50.1]} 20. Nd4 {[%clk 0:02:28.1]} 20... Nd3
{[%clk 0:01:33]} 21. Bxd3 {[%clk 0:02:22.8]} 21... cxd3 {[%clk 0:01:33.9]} 22.
Nc6 {[%clk 0:02:07.3]} 22... Qd7 {[%clk 0:01:32.1]} 23. Qxd3 {[%clk 0:01:53.5]}
23... gxf5 {[%clk 0:01:27.3]} 24. exf5 {[%clk 0:01:34.6]} 24... Bb7 {[%clk
0:01:26]} 25. Na5 {[%clk 0:01:10.8]} 25... Re5 {[%clk 0:01:14.5]} 26. Nxb7
{[%clk 0:00:36.9]} 26... Qxb7 {[%clk 0:01:15.4]} 27. Rad1 {[%clk 0:00:35.8]}
27... Rae8 {[%clk 0:01:12.9]} 28. Bf4 {[%clk 0:00:35.1]} 28... Re2 {[%clk
0:01:13.2]} 29. Bxd6 {[%clk 0:00:31.3]} 29... Rxb2 {[%clk 0:01:13.5]} 30. Bb4
{[%clk 0:00:25.8]} 30... Kh8 {[%clk 0:01:13.1]} 31. Rd2 {[%clk 0:00:22.6]} 31...
Rxd2 {[%clk 0:01:10.5]} 32. Qxd2 {[%clk 0:00:23.5]} 32... Rd8 {[%clk 0:01:02.7]}
33. d6 {[%clk 0:00:21.9]} 33... Qc6 {[%clk 0:01:02.4]} 34. Rc1 {[%clk
0:00:20.3]} 34... Qe4 {[%clk 0:00:58.6]} 35. d7 {[%clk 0:00:14.6]} 35... Qxf5
{[%clk 0:00:58.7]} 36. Be7 {[%clk 0:00:14.4]} 36... Rxd7 {[%clk 0:00:48.2]} 37.
Rc8+ {[%clk 0:00:06.2]} 37... Bf8 {[%clk 0:00:48.6]} 38. Qe2 {[%clk 0:00:01.6]}
38... Qb1+ {[%clk 0:00:38]} 0-1

[Event "Late-Titled-Tuesday-Blitz-October-03-2023"]
[Site "Chess.com"]
[Date "2023.10.03"]
[Round "3"]
[White "Arteler"]
[Black "Nekoo04"]
[Result "1-0"]
[WhiteElo "2625"]
[BlackElo "2285"]
[TimeControl "180+1"]
[EndTime "14:26:20 PDT"]
[Termination "Arteler won by resignation"]

1. e4 {[%clk 0:02:54.6]} 1... c5 {[%clk 0:02:59.9]} 2. Nf3 {[%clk 0:02:52.8]}
2... d6 {[%clk 0:02:58.4]} 3. Bb5+ {[%clk 0:02:51.6]} 3... Bd7 {[%clk
0:02:58.4]} 4. Bxd7+ {[%clk 0:02:51.3]} 4... Qxd7 {[%clk 0:02:59.3]} 5. O-O
{[%clk 0:02:51]} 5... Nc6 {[%clk 0:02:59.7]} 6. c3 {[%clk 0:02:44.9]} 6... Nf6
{[%clk 0:02:59.9]} 7. d4 {[%clk 0:02:45.1]} 7... cxd4 {[%clk 0:02:50.5]} 8. cxd4
{[%clk 0:02:46]} 8... d5 {[%clk 0:02:47.5]} 9. exd5 {[%clk 0:02:26.9]} 9... Nxd5
{[%clk 0:02:48.4]} 10. Ne5 {[%clk 0:02:25.8]} 10... Nxe5 {[%clk 0:02:44]} 11.
dxe5 {[%clk 0:02:25.6]} 11... e6 {[%clk 0:02:44.6]} 12. Qg4 {[%clk 0:02:25.1]}
12... g6 {[%clk 0:02:42.3]} 13. Nc3 {[%clk 0:02:09.5]} 13... Nxc3 {[%clk
0:02:29.8]} 14. bxc3 {[%clk 0:02:10.4]} 14... Bg7 {[%clk 0:02:30]} 15. Rd1
{[%clk 0:02:02.4]} 15... Qc6 {[%clk 0:02:15.5]} 16. Ba3 {[%clk 0:02:02.5]} 16...
Bxe5 {[%clk 0:02:08.2]} 17. Qg5 {[%clk 0:01:34]} 17... Qc7 {[%clk 0:02:06.2]}
18. Rd3 {[%clk 0:01:26.4]} 18... f6 {[%clk 0:01:53.8]} 19. Qh4 {[%clk
0:01:18.7]} 19... Rd8 {[%clk 0:01:40.6]} 20. Rad1 {[%clk 0:01:07.8]} 20... Rxd3
{[%clk 0:01:36.4]} 21. Rxd3 {[%clk 0:01:08.5]} 21... Kf7 {[%clk 0:01:36.2]} 22.
g3 {[%clk 0:00:52.6]} 22... h5 {[%clk 0:01:25]} 23. Qb4 {[%clk 0:00:44.4]} 23...
Rc8 {[%clk 0:00:25.2]} 24. h4 {[%clk 0:00:22.4]} 24... a5 {[%clk 0:00:19.9]} 25.
Qb5 {[%clk 0:00:20.2]} 25... Qc6 {[%clk 0:00:17.3]} 26. Rd7+ {[%clk 0:00:19.8]}
26... Kg8 {[%clk 0:00:17]} 27. Qd3 {[%clk 0:00:20.4]} 27... Bc7 {[%clk
0:00:05.8]} 28. Qxg6+ {[%clk 0:00:19.6]} 1-0

[Event "Late-Titled-Tuesday-Blitz-October-03-2023"]
[Site "Chess.com"]
[Date "2023.10.03"]
[Round "3"]
[White "Nor1lsk"]
[Black "FabianoCaruana"]
[Result "0-1"]
[WhiteElo "2725"]
[BlackElo "3065"]
[TimeControl "180+1"]
[EndTime "14:26:22 PDT"]
[Termination "FabianoCaruana won by resignation"]

1. e4 {[%clk 0:02:43.8]} 1... Nf6 {[%clk 0:02:57.4]} 2. e5 {[%clk 0:02:40.8]}
2... Nd5 {[%clk 0:02:57.4]} 3. c4 {[%clk 0:02:41.2]} 3... Nb6 {[%clk 0:02:57.2]}
4. a4 {[%clk 0:02:40.6]} 4... d6 {[%clk 0:02:53.5]} 5. a5 {[%clk 0:02:36.4]}
5... N6d7 {[%clk 0:02:53.8]} 6. exd6 {[%clk 0:02:27.2]} 6... exd6 {[%clk
0:02:44.1]} 7. d4 {[%clk 0:02:27.3]} 7... Be7 {[%clk 0:02:44.3]} 8. Nc3 {[%clk
0:02:27.5]} 8... O-O {[%clk 0:02:44.4]} 9. Bd3 {[%clk 0:02:26.3]} 9... Nc6
{[%clk 0:02:43.6]} 10. Nge2 {[%clk 0:02:26.1]} 10... a6 {[%clk 0:02:38.1]} 11.
O-O {[%clk 0:02:24.3]} 11... Nf6 {[%clk 0:02:36.1]} 12. h3 {[%clk 0:02:21.1]}
12... Re8 {[%clk 0:02:36.1]} 13. b3 {[%clk 0:02:19.7]} 13... h6 {[%clk
0:02:34.7]} 14. Bb2 {[%clk 0:02:19.4]} 14... d5 {[%clk 0:02:34.3]} 15. cxd5
{[%clk 0:02:09.8]} 15... Nb4 {[%clk 0:02:34.4]} 16. Bc4 {[%clk 0:01:51.6]} 16...
Bf5 {[%clk 0:02:33]} 17. Qd2 {[%clk 0:01:46.8]} 17... Bd6 {[%clk 0:02:27.3]} 18.
Ba3 {[%clk 0:01:43.4]} 18... Qd7 {[%clk 0:02:17.2]} 19. Na4 {[%clk 0:01:35.2]}
19... Ne4 {[%clk 0:02:12.5]} 20. Qb2 {[%clk 0:01:27.6]} 20... Bxh3 {[%clk
0:02:09.1]} 21. f3 {[%clk 0:01:16.6]} 21... Ng5 {[%clk 0:01:54.5]} 22. Nc5
{[%clk 0:01:08.9]} 22... Bxc5 {[%clk 0:01:26.1]} 23. dxc5 {[%clk 0:01:09.8]}
23... Nxd5 {[%clk 0:01:24.1]} 24. gxh3 {[%clk 0:00:36.1]} 24... Ne3 {[%clk
0:01:15.5]} 25. Nf4 {[%clk 0:00:28.9]} 25... Qf5 {[%clk 0:01:08.7]} 26. Qh2
{[%clk 0:00:28.7]} 26... Qxf4 {[%clk 0:01:06.9]} 27. Qxf4 {[%clk 0:00:27.5]}
27... Nxh3+ {[%clk 0:01:07]} 28. Kh2 {[%clk 0:00:28]} 28... Nxf4 {[%clk
0:01:07.9]} 29. Rg1 {[%clk 0:00:27.2]} 29... Nxc4 {[%clk 0:00:53.6]} 30. bxc4
{[%clk 0:00:27.2]} 30... Re2+ {[%clk 0:00:50.1]} 31. Kg3 {[%clk 0:00:27.1]}
31... g5 {[%clk 0:00:50.5]} 32. Kg4 {[%clk 0:00:26.6]} 32... Rae8 {[%clk
0:00:43.2]} 33. Rab1 {[%clk 0:00:26.3]} 33... R8e5 {[%clk 0:00:25.1]} 34. Rxb7
{[%clk 0:00:16.6]} 34... f5+ {[%clk 0:00:25.2]} 35. Kg3 {[%clk 0:00:17]} 35...
h5 {[%clk 0:00:25.3]} 0-1

[Event "Late-Titled-Tuesday-Blitz-October-03-2023"]
[Site "Chess.com"]
[Date "2023.10.03"]
[Round "3"]
[White "dorpato"]
[Black "rikchessmx"]
[Result "0-1"]
[WhiteElo "2035"]
[BlackElo "2339"]
[TimeControl "180+1"]
[EndTime "14:26:26 PDT"]
[Termination "rikchessmx won on time"]

1. e4 {[%clk 0:02:53.7]} 1... d6 {[%clk 0:03:00.9]} 2. d4 {[%clk 0:02:48]} 2...
c6 {[%clk 0:03:00.5]} 3. Nf3 {[%clk 0:02:47.4]} 3... Qc7 {[%clk 0:02:59.8]} 4.
Bc4 {[%clk 0:02:46.1]} 4... g6 {[%clk 0:03:00.4]} 5. Be3 {[%clk 0:02:44.3]} 5...
Bg7 {[%clk 0:03:00.7]} 6. c3 {[%clk 0:02:38.4]} 6... b5 {[%clk 0:03:00.6]} 7.
Bb3 {[%clk 0:02:38.2]} 7... e6 {[%clk 0:03:00.5]} 8. O-O {[%clk 0:02:36.8]} 8...
Ne7 {[%clk 0:02:58.9]} 9. Nbd2 {[%clk 0:02:27.1]} 9... d5 {[%clk 0:02:56.9]} 10.
Re1 {[%clk 0:02:19.8]} 10... a5 {[%clk 0:02:54.2]} 11. exd5 {[%clk 0:02:10.9]}
11... cxd5 {[%clk 0:02:52.3]} 12. Nf1 {[%clk 0:02:08.9]} 12... O-O {[%clk
0:02:51]} 13. Qd2 {[%clk 0:02:05.9]} 13... Nd7 {[%clk 0:02:49.7]} 14. Bf4 {[%clk
0:02:04.9]} 14... Qb6 {[%clk 0:02:43.9]} 15. Ne5 {[%clk 0:02:00.2]} 15... Nf5
{[%clk 0:02:41.6]} 16. Ng3 {[%clk 0:01:28.6]} 16... Nd6 {[%clk 0:02:36.5]} 17.
Bh6 {[%clk 0:00:52.5]} 17... a4 {[%clk 0:02:35.2]} 18. Bc2 {[%clk 0:00:48]}
18... Nxe5 {[%clk 0:02:35.1]} 19. dxe5 {[%clk 0:00:41.7]} 19... Nc4 {[%clk
0:02:32.9]} 20. Qc1 {[%clk 0:00:37]} 20... b4 {[%clk 0:02:13.8]} 21. Bxg7 {[%clk
0:00:32.1]} 21... Kxg7 {[%clk 0:02:13.5]} 22. b3 {[%clk 0:00:26.9]} 22... Na3
{[%clk 0:02:08.7]} 23. cxb4 {[%clk 0:00:20.6]} 23... Qxb4 {[%clk 0:02:07.4]} 24.
bxa4 {[%clk 0:00:21]} 24... Nxc2 {[%clk 0:02:04.5]} 25. Qxc2 {[%clk 0:00:21.9]}
25... Qxa4 {[%clk 0:02:04.5]} 26. Qd2 {[%clk 0:00:20.4]} 26... Qh4 {[%clk
0:01:59.5]} 27. a3 {[%clk 0:00:17.2]} 27... Ba6 {[%clk 0:01:59.4]} 28. Reb1
{[%clk 0:00:16.8]} 28... Rfc8 {[%clk 0:01:53.9]} 29. Rb4 {[%clk 0:00:16.4]}
29... Qe7 {[%clk 0:01:46.6]} 30. Rg4 {[%clk 0:00:14.4]} 30... Rc4 {[%clk
0:01:44.2]} 31. Nh5+ {[%clk 0:00:13.5]} 31... Kh8 {[%clk 0:01:35.3]} 32. Rxc4
{[%clk 0:00:11.6]} 32... Bxc4 {[%clk 0:01:33.9]} 33. Nf6 {[%clk 0:00:11.7]}
33... Kg7 {[%clk 0:01:31.1]} 34. Qg5 {[%clk 0:00:10.3]} 34... Qd8 {[%clk
0:01:27]} 35. a4 {[%clk 0:00:07.8]} 35... h6 {[%clk 0:01:26.5]} 36. Nh5+ {[%clk
0:00:05.8]} 36... Kh7 {[%clk 0:01:23.3]} 37. Nf6+ {[%clk 0:00:04.4]} 37... Kg7
{[%clk 0:01:23.2]} 38. Qg3 {[%clk 0:00:03.7]} 38... Bb5 {[%clk 0:01:08.2]} 39.
Nh5+ {[%clk 0:00:02.9]} 39... Kh8 {[%clk 0:01:05.5]} 40. Nf6 {[%clk 0:00:01.9]}
40... Rxa4 {[%clk 0:01:00.2]} 41. Rxa4 {[%clk 0:00:01.5]} 41... Bxa4 {[%clk
0:01:00.3]} 42. Qh4 {[%clk 0:00:02.1]} 42... Qf8 {[%clk 0:00:55.3]} 43. Qxa4
{[%clk 0:00:02.6]} 43... Kg7 {[%clk 0:00:51.5]} 44. h3 {[%clk 0:00:03]} 44...
Qb8 {[%clk 0:00:49.5]} 45. Qg4 {[%clk 0:00:03.2]} 45... Qxe5 {[%clk 0:00:49]}
46. Ne8+ {[%clk 0:00:02.8]} 46... Kf8 {[%clk 0:00:47]} 0-1

[Event "Late-Titled-Tuesday-Blitz-October-03-2023"]
[Site "Chess.com"]
[Date "2023.10.03"]
[Round "3"]
[White "MajorCoast"]
[Black "Balla_Tamas"]
[Result "1-0"]
[WhiteElo "2260"]
[BlackElo "2444"]
[TimeControl "180+1"]
[EndTime "14:26:27 PDT"]
[Termination "MajorCoast won by resignation"]

1. d4 {[%clk 0:03:00.9]} 1... d5 {[%clk 0:02:59.5]} 2. Nf3 {[%clk 0:03:01.3]}
2... Nf6 {[%clk 0:02:58.8]} 3. c3 {[%clk 0:03:01.7]} 3... e6 {[%clk 0:02:58.4]}
4. Bf4 {[%clk 0:03:01.2]} 4... Bd6 {[%clk 0:02:59]} 5. Bg3 {[%clk 0:03:00.5]}
5... O-O {[%clk 0:02:58.4]} 6. e3 {[%clk 0:03:00.7]} 6... b6 {[%clk 0:02:56.6]}
7. Bd3 {[%clk 0:03:01]} 7... c5 {[%clk 0:02:56.5]} 8. Nbd2 {[%clk 0:03:00.9]}
8... Ba6 {[%clk 0:02:56.7]} 9. Bxa6 {[%clk 0:02:44.5]} 9... Nxa6 {[%clk
0:02:57.6]} 10. Qe2 {[%clk 0:02:44.5]} 10... Nb8 {[%clk 0:02:57.8]} 11. O-O
{[%clk 0:02:43.8]} 11... Nc6 {[%clk 0:02:57.3]} 12. Rfd1 {[%clk 0:02:41.2]}
12... Bxg3 {[%clk 0:02:52.6]} 13. hxg3 {[%clk 0:02:40.7]} 13... Qe7 {[%clk
0:02:45.2]} 14. dxc5 {[%clk 0:02:34.2]} 14... bxc5 {[%clk 0:02:44.2]} 15. e4
{[%clk 0:02:33.9]} 15... d4 {[%clk 0:02:43.3]} 16. cxd4 {[%clk 0:02:27.5]} 16...
cxd4 {[%clk 0:02:42.2]} 17. e5 {[%clk 0:02:26.8]} 17... Ng4 {[%clk 0:02:33.8]}
18. Nb3 {[%clk 0:02:18.7]} 18... Rfd8 {[%clk 0:01:44.7]} 19. Nbxd4 {[%clk
0:02:16.3]} 19... Nb4 {[%clk 0:01:16.9]} 20. a3 {[%clk 0:02:04.3]} 20... Nd5
{[%clk 0:01:07.1]} 21. Nc6 {[%clk 0:02:01.9]} 21... Qc5 {[%clk 0:00:54.5]} 22.
Nxd8 {[%clk 0:01:58.5]} 22... Rxd8 {[%clk 0:00:55.4]} 23. Rac1 {[%clk
0:01:53.2]} 23... Qb6 {[%clk 0:00:49.3]} 24. Nd4 {[%clk 0:01:47.7]} 24... Nh6
{[%clk 0:00:47.8]} 25. Qb5 {[%clk 0:01:39.8]} 25... Qxb5 {[%clk 0:00:29.9]} 26.
Nxb5 {[%clk 0:01:40.7]} 26... Rb8 {[%clk 0:00:30.6]} 27. Nxa7 {[%clk 0:01:26.5]}
27... Ne7 {[%clk 0:00:27]} 28. Rd7 {[%clk 0:01:18.9]} 28... Kf8 {[%clk
0:00:26.7]} 29. Nc6 {[%clk 0:01:09.6]} 29... Nxc6 {[%clk 0:00:21]} 30. Rxc6
{[%clk 0:01:10.5]} 30... g6 {[%clk 0:00:15.6]} 31. b4 {[%clk 0:01:05.2]} 31...
Ra8 {[%clk 0:00:15.4]} 32. Rc3 {[%clk 0:01:00.2]} 32... Ng4 {[%clk 0:00:15.8]}
33. f4 {[%clk 0:00:47.9]} 33... Ke8 {[%clk 0:00:16.4]} 34. Rdc7 {[%clk
0:00:45.9]} 34... Rd8 {[%clk 0:00:14.5]} 35. Rc8 {[%clk 0:00:44.7]} 35... f6
{[%clk 0:00:13.5]} 36. Rxd8+ {[%clk 0:00:43.4]} 36... Kxd8 {[%clk 0:00:14.4]}
37. exf6 {[%clk 0:00:42.6]} 37... Nxf6 {[%clk 0:00:15.3]} 38. b5 {[%clk
0:00:39.4]} 38... Ne4 {[%clk 0:00:15.2]} 39. Re3 {[%clk 0:00:36.1]} 39... Nd6
{[%clk 0:00:14]} 40. Rxe6 {[%clk 0:00:35.6]} 40... Nxb5 {[%clk 0:00:14.5]} 41.
a4 {[%clk 0:00:34.6]} 41... Nd4 {[%clk 0:00:14.9]} 42. Rd6+ {[%clk 0:00:34.9]}
42... Kc7 {[%clk 0:00:15.5]} 43. Rxd4 {[%clk 0:00:35.8]} 1-0